[Event "FIDE Women World Blitz 2021"]
[Site "Warsaw"]
[Date "2021.12.29"]
[Round "5.31"]
[White "Girya, Olga"]
[Black "Kiolbasa, Oliwia"]
[Result "1/2-1/2"]
[ECO "D36"]
[WhiteElo "2402"]
[BlackElo "2403"]
[Annotator "NA"]
[PlyCount "109"]
[EventDate "2021.12.29"]
[EventType "swiss"]
[EventCountry "POL"]
[Tiebreak "Cut1 Buchholz"]
[SourceTitle "playchess.com"]
[Source "ChessBase"]
[SourceQuality "1"]
[TimeControl "180+2"]

1. d4 {[%emt 0:00:01]} d5 {[%emt 0:00:01]} 2. c4 {[%emt 0:00:01]} e6 {[%emt 0:
00:01]} 3. Nc3 {[%emt 0:00:00]} Nf6 {[%emt 0:00:01]} 4. Nf3 {[%emt 0:00:01]}
Nbd7 {[%emt 0:00:02]} 5. cxd5 exd5 {[%emt 0:00:01]} 6. Bg5 {[%emt 0:00:04]} c6
{[%emt 0:00:03]} 7. e3 {[%emt 0:00:02]} Be7 {[%emt 0:00:02]} 8. Qc2 {[%emt 0:
00:02]} h6 {[%emt 0:00:11]} 9. Bf4 {[%emt 0:00:00]} O-O {[%emt 0:00:18]} 10. h3
{[%emt 0:00:03]} Re8 {[%emt 0:00:07]} 11. Bd3 {[%emt 0:00:01]} Nf8 {[%emt 0:00:
18]} 12. O-O {[%emt 0:00:02]} Ne6 {[%emt 0:00:08]} 13. Bh2 {[%emt 0:00:02]} Bf8
{[%emt 0:00:14]} 14. Rab1 {[%emt 0:00:05]} g6 {[%emt 0:00:23]} 15. b4 {[%emt 0:
00:02]} a6 {[%emt 0:00:01]} 16. Ne5 {[%emt 0:00:05]} Ng7 {[%emt 0:00:04]} 17.
g4 {[%emt 0:00:25]} h5 {[%emt 0:00:23]} 18. f3 {[%emt 0:00:11]} Nd7 {[%emt 0:
00:06]} 19. Rfe1 {[%emt 0:00:30]} Nxe5 {[%emt 0:00:03]} 20. Bxe5 {[%emt 0:00:
01]} Bd6 {[%emt 0:00:02]} 21. Bxd6 {[%emt 0:00:12]} Qxd6 {[%emt 0:00:01]} 22.
Qh2 {[%emt 0:00:05]} Qxh2+ 23. Kxh2 {[%emt 0:00:01]} hxg4 {[%emt 0:00:26]} 24.
hxg4 {[%emt 0:00:01]} Ne6 {[%emt 0:00:02]} 25. Kg3 {[%emt 0:00:11]} Kg7 {
[%emt 0:00:04]} 26. Na4 {[%emt 0:00:06]} b5 {[%emt 0:00:13]} 27. Nc3 {[%emt 0:
00:35]} a5 {[%emt 0:00:08]} 28. bxa5 {[%emt 0:00:20]} Rxa5 {[%emt 0:00:03]} 29.
Re2 {[%emt 0:00:02]} Bd7 {[%emt 0:00:03]} 30. Rb4 {[%emt 0:00:14]} Ra3 {
[%emt 0:00:04]} 31. Rb3 {[%emt 0:00:09]} Rea8 {[%emt 0:00:07]} 32. Bc2 {
[%emt 0:00:12]} b4 {[%emt 0:00:07]} 33. Nb1 {[%emt 0:00:07]} Rxa2 {[%emt 0:00:
07]} 34. Rxb4 {[%emt 0:00:00]} c5 {[%emt 0:00:08]} 35. dxc5 {[%emt 0:00:02]}
Nxc5 {[%emt 0:00:01]} 36. Nc3 {[%emt 0:00:01]} Ra1 {[%emt 0:00:04]} 37. Nxd5 {
[%emt 0:00:02]} Rh8 {[%emt 0:00:03]} 38. Rb1 {[%emt 0:00:03]} Ra2 {[%emt 0:00:
01]} 39. Bd3 {[%emt 0:00:09]} Ra3 {[%emt 0:00:05]} 40. Bc4 {[%emt 0:00:01]} Bc6
{[%emt 0:00:01]} 41. e4 {[%emt 0:00:05]} Ne6 {[%emt 0:00:01]} 42. Rb3 {[%emt 0:
00:03]} Ra4 {[%emt 0:00:01]} 43. Rc3 {[%emt 0:00:03]} Rxc4 {[%emt 0:00:04]} 44.
Rxc4 {[%emt 0:00:01]} Bb5 {[%emt 0:00:01]} 45. Rec2 {[%emt 0:00:02]} Bxc4 {
[%emt 0:00:02]} 46. Rxc4 {[%emt 0:00:01]} Rb8 {[%emt 0:00:02]} 47. Rb4 {
[%emt 0:00:01]} Ra8 {[%emt 0:00:01]} 48. Rb7 {[%emt 0:00:00]} Ra3 {[%emt 0:00:
01]} 49. Kf2 {[%emt 0:00:04]} Ng5 {[%emt 0:00:03]} 50. Ne3 {[%emt 0:00:01]}
Nh3+ {[%emt 0:00:02]} 51. Ke2 {[%emt 0:00:02]} Nf4+ {[%emt 0:00:01]} 52. Kf2 {
[%emt 0:00:00]} Nh3+ {[%emt 0:00:01]} 53. Ke2 {[%emt 0:00:07]} Nf4+ {[%emt 0:
00:01]} 54. Kf2 {[%emt 0:00:02]} Nh3+ {[%emt 0:00:02]} 55. Ke2 {[%emt 0:00:01]}
1/2-1/2

[Event "FIDE Women World Blitz 2021"]
[Site "Warsaw"]
[Date "2021.12.29"]
[Round "5.32"]
[White "Socko, Monika"]
[Black "Kucharska, Honorata"]
[Result "1-0"]
[ECO "E94"]
[WhiteElo "2393"]
[BlackElo "2168"]
[Annotator "NA"]
[PlyCount "57"]
[EventDate "2021.12.29"]
[EventType "swiss"]
[EventCountry "POL"]
[Tiebreak "Cut1 Buchholz"]
[SourceTitle "playchess.com"]
[Source "ChessBase"]
[SourceQuality "1"]
[TimeControl "180+2"]

1. d4 {[%emt 0:00:01]} Nf6 {[%emt 0:00:01]} 2. c4 {[%emt 0:00:01]} d6 {[%emt 0:
00:01]} 3. Nc3 {[%emt 0:00:02]} Nbd7 {[%emt 0:00:01]} 4. e4 {[%emt 0:00:02]} e5
{[%emt 0:00:01]} 5. Nf3 {[%emt 0:00:01]} g6 {[%emt 0:00:01]} 6. Be2 {[%emt 0:
00:02]} Bg7 {[%emt 0:00:02]} 7. O-O {[%emt 0:00:02]} O-O {[%emt 0:00:02]} 8.
Be3 {[%emt 0:00:05]} Re8 {[%emt 0:00:09]} 9. d5 {[%emt 0:00:02]} Nc5 {[%emt 0:
00:05]} 10. Nd2 {[%emt 0:00:03]} a5 {[%emt 0:00:02]} 11. a3 {[%emt 0:00:09]}
Bd7 {[%emt 0:00:38]} 12. b4 {[%emt 0:00:11]} Na6 {[%emt 0:00:01]} 13. Rb1 {
[%emt 0:00:12]} axb4 {[%emt 0:00:15]} 14. axb4 {[%emt 0:00:01]} c6 {[%emt 0:00:
07]} 15. dxc6 {[%emt 0:00:31]} bxc6 {[%emt 0:00:03]} 16. Qc2 {[%emt 0:00:05]}
Be6 {[%emt 0:00:13]} 17. Rfd1 {[%emt 0:00:03]} Qe7 {[%emt 0:00:16]} 18. Rb2 {
[%emt 0:00:17]} d5 {[%emt 0:00:31]} 19. exd5 {[%emt 0:00:38]} cxd5 {[%emt 0:00:
02]} 20. cxd5 {[%emt 0:00:07]} Nxd5 {[%emt 0:00:01]} 21. Nxd5 {[%emt 0:00:05]}
Bxd5 {[%emt 0:00:01]} 22. Ne4 {[%emt 0:00:03]} Nxb4 {[%emt 0:00:27]} 23. Qb1 {
[%emt 0:00:04]} Bxe4 {[%emt 0:00:24]} 24. Qxe4 {[%emt 0:00:01]} Na2 {[%emt 0:
00:03]} 25. Ra1 {[%emt 0:00:14]} Nc3 {[%emt 0:00:09]} 26. Qxa8 {[%emt 0:00:01]}
Nxe2+ {[%emt 0:00:05]} 27. Rxe2 {[%emt 0:00:01]} Rxa8 {[%emt 0:00:01]} 28.
Rxa8+ {[%emt 0:00:01]} Bf8 {[%emt 0:00:01]} 29. Bh6 {[%emt 0:00:02]} 1-0

[Event "FIDE Women World Blitz 2021"]
[Site "Warsaw"]
[Date "2021.12.29"]
[Round "5.33"]
[White "Lach, Aleksandra"]
[Black "Goraj, Barbara"]
[Result "1-0"]
[ECO "B23"]
[WhiteElo "2204"]
[BlackElo "1902"]
[Annotator "NA"]
[PlyCount "47"]
[EventDate "2021.12.29"]
[EventType "swiss"]
[EventCountry "POL"]
[Tiebreak "Cut1 Buchholz"]
[SourceTitle "playchess.com"]
[Source "ChessBase"]
[SourceQuality "1"]
[TimeControl "180+2"]

1. e4 {[%emt 0:00:01]} c5 {[%emt 0:00:01]} 2. Nc3 {[%emt 0:00:01]} Nc6 {
[%emt 0:00:01]} 3. Bb5 {[%emt 0:00:01]} Nd4 {[%emt 0:00:02]} 4. Nf3 {[%emt 0:
00:01]} Nxb5 {[%emt 0:00:03]} 5. Nxb5 {[%emt 0:00:01]} d6 {[%emt 0:00:08]} 6.
d4 {[%emt 0:00:01]} cxd4 {[%emt 0:00:29]} 7. Qxd4 {[%emt 0:00:02]} Bd7 {
[%emt 0:00:18]} 8. Nc3 {[%emt 0:00:11]} Nf6 {[%emt 0:00:12]} 9. Bg5 {[%emt 0:
00:06]} h6 {[%emt 0:00:14]} 10. Bxf6 {[%emt 0:00:16]} gxf6 {[%emt 0:00:02]} 11.
O-O-O {[%emt 0:00:12]} h5 {[%emt 0:00:13]} 12. Kb1 {[%emt 0:00:02]} Bh6 {
[%emt 0:00:05]} 13. Nd5 {[%emt 0:00:06]} Rg8 {[%emt 0:00:42]} 14. Nh4 {[%emt 0:
00:17]} Rg4 {[%emt 0:00:30]} 15. g3 {[%emt 0:00:01]} Be6 {[%emt 0:00:20]} 16.
f3 {[%emt 0:00:05]} Rg8 {[%emt 0:00:01]} 17. Nf5 {[%emt 0:00:05]} Bxf5 {
[%emt 0:00:08]} 18. exf5 {[%emt 0:00:01]} Kf8 {[%emt 0:00:04]} 19. Rhe1 {
[%emt 0:00:06]} Rc8 {[%emt 0:00:03]} 20. Rxe7 {[%emt 0:00:10]} Bg5 {[%emt 0:00:
02]} 21. h4 {[%emt 0:00:04]} Bh6 {[%emt 0:00:02]} 22. Qxf6 {[%emt 0:00:03]} Rg7
{[%emt 0:00:02]} 23. Qxh6 {[%emt 0:00:03]} Qa5 {[%emt 0:00:02]} 24. f6 {
[%emt 0:00:20]} 1-0

[Event "FIDE Women World Blitz 2021"]
[Site "Warsaw"]
[Date "2021.12.29"]
[Round "5.34"]
[White "Garcia Martin, Marta"]
[Black "Smietanska, Wiktoria"]
[Result "1-0"]
[ECO "B30"]
[WhiteElo "2194"]
[BlackElo "1765"]
[Annotator "NA"]
[PlyCount "73"]
[EventDate "2021.12.29"]
[EventType "swiss"]
[EventCountry "POL"]
[Tiebreak "Cut1 Buchholz"]
[SourceTitle "playchess.com"]
[Source "ChessBase"]
[SourceQuality "1"]
[TimeControl "180+2"]

1. e4 {[%emt 0:00:02]} c5 {[%emt 0:00:00]} 2. Nc3 {[%emt 0:00:02]} Nc6 {
[%emt 0:00:01]} 3. Bb5 {[%emt 0:00:01]} Nd4 {[%emt 0:00:02]} 4. Nf3 {[%emt 0:
00:02]} a6 {[%emt 0:00:04]} 5. Bd3 {[%emt 0:00:01]} e6 {[%emt 0:00:34]} 6. O-O
{[%emt 0:00:02]} Ne7 {[%emt 0:00:04]} 7. Nxd4 {[%emt 0:00:03]} cxd4 {[%emt 0:
00:01]} 8. Ne2 {[%emt 0:00:01]} Nc6 {[%emt 0:00:03]} 9. c3 {[%emt 0:00:01]}
dxc3 {[%emt 0:00:02]} 10. bxc3 {[%emt 0:00:33]} d5 {[%emt 0:00:05]} 11. exd5 {
[%emt 0:00:07]} Qxd5 {[%emt 0:00:14]} 12. Qc2 {[%emt 0:00:08]} g6 {[%emt 0:00:
10]} 13. Be4 {[%emt 0:00:02]} Qd7 {[%emt 0:00:05]} 14. d4 {[%emt 0:00:04]} Bg7
{[%emt 0:00:02]} 15. Ba3 {[%emt 0:00:01]} Ne7 {[%emt 0:00:07]} 16. Nf4 {
[%emt 0:00:17]} O-O {[%emt 0:00:04]} 17. Nd3 {[%emt 0:00:01]} Rd8 {[%emt 0:00:
09]} 18. Rab1 {[%emt 0:00:40]} Qc7 {[%emt 0:00:14]} 19. Bc5 {[%emt 0:00:10]}
Nd5 {[%emt 0:00:36]} 20. c4 {[%emt 0:00:10]} Nf6 {[%emt 0:00:48]} 21. Bb6 {
[%emt 0:00:01]} Qd7 {[%emt 0:00:06]} 22. Bxd8 {[%emt 0:00:05]} Nxe4 {[%emt 0:
00:02]} 23. Bb6 {[%emt 0:00:02]} Bxd4 {[%emt 0:00:04]} 24. Ne5 {[%emt 0:00:28]}
Bxe5 {[%emt 0:00:05]} 25. Qxe4 {[%emt 0:00:01]} Bc7 {[%emt 0:00:03]} 26. Rfd1 {
[%emt 0:00:05]} Qe7 {[%emt 0:00:03]} 27. Bxc7 {[%emt 0:00:05]} Qxc7 {[%emt 0:
00:01]} 28. Qd4 {[%emt 0:00:03]} b5 {[%emt 0:00:06]} 29. Qd8+ {[%emt 0:00:02]}
Qxd8 {[%emt 0:00:01]} 30. Rxd8+ {[%emt 0:00:02]} Kg7 {[%emt 0:00:01]} 31. cxb5
{[%emt 0:00:12]} axb5 {[%emt 0:00:01]} 32. Rc1 {[%emt 0:00:04]} Bb7 {[%emt 0:
00:03]} 33. Rxa8 {[%emt 0:00:01]} Bxa8 {[%emt 0:00:02]} 34. Rc5 {[%emt 0:00:01]
} Bd5 {[%emt 0:00:03]} 35. a3 {[%emt 0:00:01]} Bc4 {[%emt 0:00:02]} 36. a4 {
[%emt 0:00:05]} Bd3 {[%emt 0:00:02]} 37. axb5 {[%emt 0:00:02]} 1-0

[Event "FIDE Women World Blitz 2021"]
[Site "Warsaw"]
[Date "2021.12.29"]
[Round "5.35"]
[White "Kashlinskaya, Alina"]
[Black "Katkov, Michelle"]
[Result "1-0"]
[ECO "E32"]
[WhiteElo "2482"]
[BlackElo "1651"]
[Annotator "ChessBase"]
[PlyCount "109"]
[EventDate "2021.12.29"]
[EventType "swiss"]
[EventCountry "POL"]
[Tiebreak "Cut1 Buchholz"]
[SourceTitle "playchess.com"]
[Source "ChessBase"]
[SourceQuality "1"]
[TimeControl "180+2"]

1. d4 {[%emt 0:00:01]} Nf6 {[%emt 0:00:01]} 2. c4 {[%emt 0:00:02]} e6 {[%emt 0:
00:01]} 3. Nc3 {[%emt 0:00:01]} Bb4 {[%emt 0:00:02]} 4. Qc2 {[%emt 0:00:02]}
O-O {[%emt 0:00:03]} 5. a3 {[%emt 0:00:01]} Bxc3+ {[%emt 0:00:07]} 6. Qxc3 {
[%emt 0:00:01]} d6 {[%emt 0:00:12]} 7. Nf3 {[%emt 0:00:03]} Ne4 {[%emt 0:00:02]
} 8. Qc2 {[%emt 0:00:03]} f5 {[%emt 0:00:02]} 9. g3 {[%emt 0:00:09]} Nd7 {
[%emt 0:00:03]} 10. Bg2 {[%emt 0:00:01]} Ndf6 {[%emt 0:00:17]} 11. Nd2 {
[%emt 0:00:02]} Nxd2 {[%emt 0:00:13]} 12. Bxd2 {[%emt 0:00:02]} e5 {[%emt 0:00:
05]} 13. Bc3 {[%emt 0:00:21]} Qe7 {[%emt 0:00:16]} 14. dxe5 {[%emt 0:00:13]}
dxe5 {[%emt 0:00:01]} 15. O-O-O {[%emt 0:00:17]} c5 {[%emt 0:00:29]} 16. Kb1 {
[%emt 0:00:09]} Be6 {[%emt 0:00:02]} 17. Bxe5 {[%emt 0:00:06]} Qf7 {[%emt 0:00:
19]} 18. Bxf6 {[%emt 0:00:10]} Qxf6 {[%emt 0:00:03]} 19. Bd5 {[%emt 0:00:06]}
Rfe8 {[%emt 0:00:08]} 20. e3 {[%emt 0:00:06]} Rad8 {[%emt 0:00:15]} 21. Qa4 {
[%emt 0:00:23]} Bxd5 {[%emt 0:00:08]} 22. Rxd5 {[%emt 0:00:04]} Re4 {[%emt 0:
00:18]} 23. Rxd8+ {[%emt 0:00:10]} Qxd8 {[%emt 0:00:02]} 24. Rd1 {[%emt 0:00:
01]} Qb6 {[%emt 0:00:12]} 25. Qd7 {[%emt 0:00:11]} h6 {[%emt 0:00:11]} 26. Qc8+
{[%emt 0:00:13]} Kh7 {[%emt 0:00:03]} 27. Qxf5+ {[%emt 0:00:02]} Qg6 {[%emt 0:
00:01]} 28. Qxg6+ {[%emt 0:00:03]} Kxg6 {[%emt 0:00:01]} 29. Rd6+ {[%emt 0:00:
05]} Kf5 {[%emt 0:00:13]} 30. Rd5+ {[%emt 0:00:02]} Kg4 {[%emt 0:00:01]} 31.
Rxc5 {[%emt 0:00:03]} Kh3 {[%emt 0:00:03]} 32. Rc7 {[%emt 0:00:06]} Kxh2 {
[%emt 0:00:03]} 33. Rxg7 {[%emt 0:00:04]} Rxc4 {[%emt 0:00:05]} 34. Rxb7 {
[%emt 0:00:03]} Kg2 {[%emt 0:00:02]} 35. Rf7 {[%emt 0:00:07]} h5 {[%emt 0:00:
02]} 36. b3 {[%emt 0:00:02]} Rc3 {[%emt 0:00:03]} 37. Kb2 {[%emt 0:00:01]} Rd3
{[%emt 0:00:01]} 38. Kc2 {[%emt 0:00:02]} Rd5 {[%emt 0:00:02]} 39. b4 {[%emt 0:
00:03]} Rd6 {[%emt 0:00:02]} 40. Kc3 {[%emt 0:00:03]} Rd1 {[%emt 0:00:02]} 41.
a4 {[%emt 0:00:03]} Rf1 {[%emt 0:00:01]} 42. b5 {[%emt 0:00:07]} Rc1+ {[%emt 0:
00:04]} 43. Kb4 {[%emt 0:00:03]} Rb1+ {[%emt 0:00:02]} 44. Kc5 {[%emt 0:00:03]}
Ra1 {[%emt 0:00:02]} 45. Rxa7 {[%emt 0:00:03]} Kxf2 {[%emt 0:00:01]} 46. b6 {
[%emt 0:00:02]} Kxg3 {[%emt 0:00:02]} 47. b7 {[%emt 0:00:04]} Rb1 {[%emt 0:00:
01]} 48. a5 {[%emt 0:00:04]} h4 {[%emt 0:00:01]} 49. a6 {[%emt 0:00:01]} h3 {
[%emt 0:00:01]} 50. Ra8 {[%emt 0:00:01]} h2 {[%emt 0:00:01]} 51. Rg8+ {[%emt 0:
00:03]} Kf3 {[%emt 0:00:06]} 52. Rh8 {[%emt 0:00:01]} Kg2 {[%emt 0:00:04]} 53.
a7 {[%emt 0:00:04]} Rc1+ {[%emt 0:00:03]} 54. Kd4 {[%emt 0:00:03]} Ra1 {
[%emt 0:00:01]} 55. a8=Q {[%emt 0:00:06]} 1-0

[Event "FIDE Women World Blitz 2021"]
[Site "Warsaw"]
[Date "2021.12.29"]
[Round "5.36"]
[White "Kurmangaliyeva, Liya"]
[Black "Movsesian, Julia"]
[Result "0-1"]
[ECO "C41"]
[WhiteElo "2222"]
[BlackElo "2322"]
[Annotator "NA"]
[PlyCount "110"]
[EventDate "2021.12.29"]
[EventType "swiss"]
[EventCountry "POL"]
[Tiebreak "Cut1 Buchholz"]
[SourceTitle "playchess.com"]
[Source "ChessBase"]
[SourceQuality "1"]
[TimeControl "180+2"]

1. e4 {[%emt 0:00:01]} d6 {[%emt 0:00:00]} 2. d4 {[%emt 0:00:03]} Nf6 3. Nc3 {
[%emt 0:00:01]} Nbd7 {[%emt 0:00:01]} 4. Nf3 {[%emt 0:00:07]} e5 {[%emt 0:00:
01]} 5. g3 {[%emt 0:00:02]} Be7 {[%emt 0:00:03]} 6. Bg2 {[%emt 0:00:01]} O-O {
[%emt 0:00:01]} 7. O-O {[%emt 0:00:03]} c6 {[%emt 0:00:00]} 8. a4 {[%emt 0:00:
03]} Re8 {[%emt 0:00:03]} 9. Re1 {[%emt 0:00:04]} Rb8 {[%emt 0:00:05]} 10. a5 {
[%emt 0:00:03]} Qc7 {[%emt 0:00:06]} 11. h3 {[%emt 0:00:07]} h6 {[%emt 0:00:06]
} 12. Nh4 {[%emt 0:00:07]} Bf8 {[%emt 0:00:06]} 13. Be3 {[%emt 0:00:15]} b5 {
[%emt 0:00:16]} 14. axb6 {[%emt 0:00:09]} axb6 {[%emt 0:00:01]} 15. d5 {
[%emt 0:00:15]} b5 {[%emt 0:00:35]} 16. Ra7 {[%emt 0:00:10]} Rb7 {[%emt 0:00:
03]} 17. Rxb7 {[%emt 0:00:30]} Bxb7 {[%emt 0:00:01]} 18. dxc6 {[%emt 0:00:07]}
Bxc6 {[%emt 0:00:01]} 19. Qd3 {[%emt 0:00:11]} Qb7 {[%emt 0:00:08]} 20. Ra1 {
[%emt 0:00:07]} Nc5 {[%emt 0:00:08]} 21. Bxc5 {[%emt 0:00:08]} dxc5 {[%emt 0:
00:01]} 22. Rd1 {[%emt 0:00:17]} c4 {[%emt 0:00:07]} 23. Qe3 {[%emt 0:00:06]}
g6 {[%emt 0:00:36]} 24. Kh2 {[%emt 0:00:33]} Qb8 {[%emt 0:00:07]} 25. Nd5 {
[%emt 0:00:03]} Bxd5 {[%emt 0:00:08]} 26. exd5 {[%emt 0:00:01]} Qd6 {[%emt 0:
00:00]} 27. b3 {[%emt 0:00:08]} Rc8 {[%emt 0:00:05]} 28. Bf3 {[%emt 0:00:08]}
cxb3 {[%emt 0:00:08]} 29. cxb3 b4 30. Rd3 {[%emt 0:00:02]} Rc2 {[%emt 0:00:11]}
31. Ng2 {[%emt 0:00:02]} h5 {[%emt 0:00:05]} 32. Bd1 {[%emt 0:00:03]} Ra2 {
[%emt 0:00:07]} 33. Bf3 {[%emt 0:00:03]} Kh7 {[%emt 0:00:03]} 34. Be4 {[%emt 0:
00:05]} Bh6 {[%emt 0:00:01]} 35. Qf3 {[%emt 0:00:01]} Kg7 {[%emt 0:00:03]} 36.
Rd1 {[%emt 0:00:02]} Rb2 {[%emt 0:00:06]} 37. Rd3 {[%emt 0:00:03]} Nd7 {
[%emt 0:00:10]} 38. Rd1 {[%emt 0:00:04]} Nc5 {[%emt 0:00:03]} 39. Ne3 {[%emt 0:
00:01]} Rxb3 {[%emt 0:00:03]} 40. Nc4 {[%emt 0:00:02]} Rxf3 {[%emt 0:00:03]}
41. Nxd6 {[%emt 0:00:01]} Rxf2+ {[%emt 0:00:01]} 42. Kg1 {[%emt 0:00:00]} Be3 {
[%emt 0:00:06]} 43. Kh1 {[%emt 0:00:02]} b3 {[%emt 0:00:01]} 44. Bb1 {[%emt 0:
00:01]} b2 {[%emt 0:00:02]} 45. Nc4 {[%emt 0:00:02]} Bd4 {[%emt 0:00:01]} 46.
d6 {[%emt 0:00:01]} Kf6 {[%emt 0:00:05]} 47. Nb6 {[%emt 0:00:02]} Ke6 {[%emt 0:
00:02]} 48. Nc8 {[%emt 0:00:06]} Kd7 {[%emt 0:00:02]} 49. Nb6+ {[%emt 0:00:02]}
Kxd6 {[%emt 0:00:01]} 50. Nc4+ {[%emt 0:00:01]} Ke7 {[%emt 0:00:00]} 51. Nd2 {
[%emt 0:00:02]} f5 {[%emt 0:00:03]} 52. Nf1 {[%emt 0:00:03]} Kf6 {[%emt 0:00:
03]} 53. Nh2 {[%emt 0:00:03]} Ne4 {[%emt 0:00:03]} 54. Bxe4 {[%emt 0:00:02]}
fxe4 {[%emt 0:00:01]} 55. Rb1 {[%emt 0:00:01]} Rc2 {[%emt 0:00:01]} 0-1

[Event "FIDE Women World Blitz 2021"]
[Site "Warsaw"]
[Date "2021.12.29"]
[Round "5.37"]
[White "Jarocka, Liwia"]
[Black "Batsiashvili, Nino"]
[Result "1-0"]
[ECO "C47"]
[WhiteElo "1851"]
[BlackElo "2491"]
[Annotator "ChessBase"]
[PlyCount "83"]
[EventDate "2021.12.29"]
[EventType "swiss"]
[EventCountry "POL"]
[Tiebreak "Cut1 Buchholz"]
[SourceTitle "playchess.com"]
[Source "ChessBase"]
[SourceQuality "1"]
[TimeControl "180+2"]

1. e4 {[%emt 0:00:01]} e5 {[%emt 0:00:00]} 2. Nf3 {[%emt 0:00:01]} Nc6 {
[%emt 0:00:01]} 3. Nc3 {[%emt 0:00:01]} Nf6 {[%emt 0:00:04]} 4. a4 {[%emt 0:00:
00]} d6 {[%emt 0:00:09]} 5. Bc4 {[%emt 0:00:08]} Be7 {[%emt 0:00:01]} 6. d3 {
[%emt 0:00:01]} O-O {[%emt 0:00:02]} 7. O-O {[%emt 0:00:02]} Bg4 {[%emt 0:00:
12]} 8. h3 {[%emt 0:00:06]} Bh5 {[%emt 0:00:05]} 9. Be3 {[%emt 0:00:02]} Nd4 {
[%emt 0:00:10]} 10. Bxd4 exd4 {[%emt 0:00:01]} 11. Nd5 {[%emt 0:00:17]} Nxd5 {
[%emt 0:00:07]} 12. Bxd5 {[%emt 0:00:01]} c6 {[%emt 0:00:14]} 13. Bb3 {[%emt 0:
00:00]} Bf6 {[%emt 0:00:10]} 14. Re1 {[%emt 0:00:12]} Kh8 {[%emt 0:00:02]} 15.
g4 {[%emt 0:00:07]} Bg6 {[%emt 0:00:01]} 16. Qd2 {[%emt 0:00:02]} Be5 {[%emt 0:
00:05]} 17. Qg5 {[%emt 0:00:50]} Qxg5 {[%emt 0:00:26]} 18. Nxg5 {[%emt 0:00:01]
} a5 {[%emt 0:00:18]} 19. Nf3 {[%emt 0:00:03]} f6 {[%emt 0:00:05]} 20. Rf1 {
[%emt 0:00:05]} Bf7 {[%emt 0:00:04]} 21. Bxf7 Rxf7 {[%emt 0:00:01]} 22. Nh4 {
[%emt 0:00:10]} d5 {[%emt 0:00:11]} 23. f4 {[%emt 0:00:14]} Bc7 {[%emt 0:00:05]
} 24. Rae1 {[%emt 0:00:03]} g6 {[%emt 0:00:16]} 25. Nf3 {[%emt 0:00:08]} Bxf4 {
[%emt 0:00:08]} 26. Nxd4 {[%emt 0:00:28]} Be5 {[%emt 0:00:02]} 27. Nf3 {
[%emt 0:00:15]} Bxb2 {[%emt 0:00:02]} 28. exd5 {[%emt 0:00:01]} cxd5 {[%emt 0:
00:01]} 29. Re6 {[%emt 0:00:02]} Rc8 {[%emt 0:00:06]} 30. Rf2 {[%emt 0:00:14]}
Rc6 {[%emt 0:00:04]} 31. Re8+ {[%emt 0:00:01]} Kg7 {[%emt 0:00:01]} 32. Kg2 {
[%emt 0:00:02]} Rcc7 {[%emt 0:00:09]} 33. Ra8 {[%emt 0:00:02]} Bc3 {[%emt 0:00:
02]} 34. Rd8 {[%emt 0:00:04]} Rcd7 {[%emt 0:00:02]} 35. Rb8 {[%emt 0:00:02]}
Rfe7 {[%emt 0:00:02]} 36. h4 {[%emt 0:00:09]} h6 {[%emt 0:00:08]} 37. h5 {
[%emt 0:00:06]} Be5 {[%emt 0:00:20]} 38. Ra8 {[%emt 0:00:02]} Bc7 {[%emt 0:00:
05]} 39. hxg6 {[%emt 0:00:01]} Kxg6 {[%emt 0:00:02]} 40. Nh4+ {[%emt 0:00:01]}
Kg5 {[%emt 0:00:07]} 41. Nf5 {[%emt 0:00:01]} Re1 {[%emt 0:00:05]} 42. Rg8+ {
[%emt 0:00:02]} 1-0

[Event "FIDE Women World Blitz 2021"]
[Site "Warsaw"]
[Date "2021.12.29"]
[Round "5.38"]
[White "Badelka, Olga"]
[Black "Atalik, Ekaterina"]
[Result "1-0"]
[ECO "A11"]
[WhiteElo "2188"]
[BlackElo "2430"]
[Annotator "NA"]
[PlyCount "91"]
[EventDate "2021.12.29"]
[EventType "swiss"]
[EventCountry "POL"]
[Tiebreak "Cut1 Buchholz"]
[SourceTitle "playchess.com"]
[Source "ChessBase"]
[SourceQuality "1"]
[TimeControl "180+2"]

1. Nf3 {[%emt 0:00:03]} d5 {[%emt 0:00:01]} 2. g3 {[%emt 0:00:01]} c6 {[%emt 0:
00:01]} 3. Bg2 {[%emt 0:00:01]} Nf6 {[%emt 0:00:01]} 4. O-O {[%emt 0:00:01]} g6
{[%emt 0:00:01]} 5. b3 {[%emt 0:00:02]} Bg7 {[%emt 0:00:02]} 6. Bb2 {[%emt 0:
00:01]} O-O {[%emt 0:00:02]} 7. c4 {[%emt 0:00:03]} dxc4 {[%emt 0:00:02]} 8.
bxc4 {[%emt 0:00:02]} c5 {[%emt 0:00:01]} 9. Nc3 {[%emt 0:00:04]} Nc6 {[%emt 0:
00:04]} 10. Rb1 {[%emt 0:00:01]} Nd4 {[%emt 0:00:12]} 11. d3 {[%emt 0:00:18]}
Nxf3+ {[%emt 0:00:12]} 12. Bxf3 {[%emt 0:00:01]} Ne8 {[%emt 0:00:11]} 13. Ne4 {
[%emt 0:00:12]} Bxb2 {[%emt 0:00:06]} 14. Rxb2 {[%emt 0:00:01]} Qc7 {[%emt 0:
00:04]} 15. Rb5 {[%emt 0:00:04]} f5 {[%emt 0:00:07]} 16. Rxc5 {[%emt 0:00:25]}
fxe4 {[%emt 0:00:16]} 17. Rxc7 {[%emt 0:00:01]} exf3 {[%emt 0:00:02]} 18. Rxe7
{[%emt 0:00:07]} Bg4 {[%emt 0:00:09]} 19. exf3 {[%emt 0:00:05]} Bxf3 {[%emt 0:
00:02]} 20. Qe1 {[%emt 0:00:06]} Ng7 {[%emt 0:00:06]} 21. Qe5 {[%emt 0:00:12]}
Nf5 {[%emt 0:00:13]} 22. Qe6+ {[%emt 0:00:24]} Kh8 {[%emt 0:00:01]} 23. Rc7 {
[%emt 0:00:06]} Rae8 {[%emt 0:00:09]} 24. Qd7 {[%emt 0:00:37]} Re7 {[%emt 0:00:
03]} 25. Qxe7 {[%emt 0:00:09]} Nxe7 {[%emt 0:00:01]} 26. Rxe7 {[%emt 0:00:01]}
Rd8 {[%emt 0:00:05]} 27. Re3 {[%emt 0:00:04]} Bc6 {[%emt 0:00:02]} 28. Rd1 {
[%emt 0:00:04]} Rd4 {[%emt 0:00:06]} 29. f3 {[%emt 0:00:04]} Kg7 {[%emt 0:00:
03]} 30. Kf2 {[%emt 0:00:01]} Kf6 {[%emt 0:00:01]} 31. Ree1 {[%emt 0:00:12]}
Ba4 {[%emt 0:00:05]} 32. Rd2 {[%emt 0:00:02]} Bc6 {[%emt 0:00:02]} 33. Ke3 {
[%emt 0:00:00]} Rd8 {[%emt 0:00:03]} 34. d4 {[%emt 0:00:03]} Re8+ {[%emt 0:00:
02]} 35. Kf2 {[%emt 0:00:00]} Rxe1 {[%emt 0:00:02]} 36. Kxe1 {[%emt 0:00:01]}
Ke7 {[%emt 0:00:08]} 37. d5 {[%emt 0:00:01]} Bd7 {[%emt 0:00:03]} 38. Kf2 {
[%emt 0:00:01]} Kd6 {[%emt 0:00:02]} 39. Ke3 {[%emt 0:00:04]} Bf5 {[%emt 0:00:
02]} 40. Kd4 {[%emt 0:00:01]} b6 {[%emt 0:00:01]} 41. Re2 {[%emt 0:00:01]} Bd7
{[%emt 0:00:07]} 42. Re4 {[%emt 0:00:03]} h5 {[%emt 0:00:07]} 43. Rf4 {[%emt 0:
00:01]} Bf5 {[%emt 0:00:03]} 44. g4 {[%emt 0:00:05]} hxg4 {[%emt 0:00:04]} 45.
fxg4 {[%emt 0:00:01]} Bd7 {[%emt 0:00:03]} 46. Rf6+ {[%emt 0:00:01]} 1-0